Workbook

Sheet Титульный
A1: SHABLON.TSO.2022
A2: Версия 22.0.1
B4: Информация о плате за техприсоединение к электросетям
B6: Наименование организации | C6: Акционерное общество "Верхнесалдинские электрические сети"
B7: ИНН | C7: 6623130658
B8: КПП | C8: 662301001
B9: Наименование (описание) обособленного подразделения | C9: нет
B10: Организационно-правовая форма | C10: Акционерное общество
B11: Вид деятельности | C11: Передача электрической энергии, технологическое присоединение к электрическим сетям
B12: Период | C12: 2021
C13: Адрес регулируемой организации
B14: Юридический адрес | C14: 624761, Свердловская область, г. Верхняя Салда, ул Молодежный поселок, д. 102А, офис 1
B15: Почтовый адрес | C15: 624761, Свердловская область, г. Верхняя Салда, ул Молодежный поселок, д. 102А, офис 1
C16: Руководитель
B17: Фамилия, имя, отчество | C17: Гринь Евгений Андреевич
B18: Телефон | C18: 7 (34345) 5-66-63
C19: Ответственный за предоставление информации (от регулируемой организации)
B20: Фамилия, имя, отчество | C20: Батенева Ольга Анатольевна
B21: Должность | C21: Начальник отдела ценообразования услуг в электроэнергетике
B22: Контактный телефон | C22: 8(343)286-05-81 доб.1390
B23: e-mail | C23: OBateneva@okenergo.com

Sheet Инструкция
B2: Инструкция по заполнению приложений, направленных письмом Региональной энергетической комиссии Свердловской области (далее – РЭК Свердловской области), разработанных в соответствии с методическими указаниями по определению размера платы за технологическое присоединение к электрическим сетям, утвержденными приказом ФАС России от 29.08.2017 № 1135/17
B3: 1. Ячейки голубого цвета подлежат обязательному заполнению территориальной сетевой организацией (далее – ТСО), ячейки желтого цвета предназначены для заполнения ТСО, ячейки зеленого цвета не подлежат заполнению.
B4: ="2. Показатели в приложениях 1.1, 1.2, 5.1, 5.2 заполняются по заключенным договорам об осуществлении технологического присоединения к электрическим сетям ТСО (далее − договор) "&"по введенным в эксплуатацию объектам электросетевого хозяйства ТСО за периоды "&IF(Титульный!C12="","--- выберите период на листе Титульный.",(Титульный!C12-3)&", "&(Титульный!C12-2)&", "&(Титульный!C12-1)&" годы.") -> 2. Показатели в приложениях 1.1, 1.2, 5.1, 5.2 заполняются по заключенным договорам об осуществлении технологического присоединения к электрическим сетям ТСО (далее − договор) по введенным в эксплуатацию объектам электросетевого хозяйства ТСО за периоды 2018, 2019, 2020 годы.
B5: ="3. Показатели в приложениях 1.1, 1.2, 5.1, 5.2 заполняются раздельно для территорий городских населенных пунктов и для территорий, " & "не относящихся к городским населенным пунктам." -> 3. Показатели в приложениях 1.1, 1.2, 5.1, 5.2 заполняются раздельно для территорий городских населенных пунктов и для территорий, не относящихся к городским населенным пунктам.
B6: 4. Показатели в приложениях 2.1, 2.2, 2.3, 3.1, 3.2 заполняются по выполненным договорам за 2018, 2019, 2020 годы.
B7: ="5. В случае если ТСО за периоды " &IF(Титульный!C12="","--- выберите период на листе Титульный --- ",(Титульный!C12-3)&", "&(Титульный!C12-2)&", "&(Титульный!C12-1)&" годы ") & "осуществляла деятельность по технологическому присоединению раздельно по постоянной и временной схеме, необходимо дополнительно представить в РЭК Свердловской области информацию о расходах за периоды " &IF(Титульный!C12="","--- выберите период на листе Титульный ---",(Титульный!C12-3)&", "&(Титульный!C12-2)&", "&(Титульный!C12-1)&" годы") & " для установления РЭК Свердловской области стандартизированной тарифной ставки С1, ставки за единицу максиальной мощности C1maxN раздельно для постоянной и для временной схемы." -> 5. В случае если ТСО за периоды 2018, 2019, 2020 годы осуществляла деятельность по технологическому присоединению раздельно по постоянной и временной схеме, необходимо дополнительно представить в РЭК Свердловской области информацию о расходах за периоды 2018, 2019, 2020 годы для установления РЭК Свердловской области стандартизированной тарифной ставки С1, ставки за единицу максиальной мощности C1maxN раздельно для постоянной и для временной схемы.
B8: 6. Приложение 4 к Методическим указаниям по определению размера платы за технологическое присоединение к электрическим сетям, утвержденным приказом ФАС России от 29.08.2017 № 1135/17 заполняется РЭК Свердловской области и не подлежит заполнению ТСО.
B10: I. Заполнение приложений 1.1, 1.2.
B11: 1) Приложение 1.1 заполняется для территорий городских населенных пунктов.
B12: 2) Приложение 1.2 заполняется для территорий, не относящихся к городским населенным пунктам.
B13: 3) В графе 2 указываются характеристики объекта электросетевого хозяйства/средства коммерческого учета электрической энергии (мощности), введенного в эксплуатацию (наименование мероприятия, выполненного ТСО в соответствии с выданными техническими условиями).
B14: 4) В графах 3, 7, 11 указывается уровень напряжения, соответствующий уровню напряжения объекта электросетевого хозяйства/средства коммерческого учета электрической энергии (мощности), введенного в эксплуатацию (наименование мероприятия, выполненного ТСО в соответствии с выданными техническими условиями).
B15: 5) В графах 4, 8, 12 указывается протяженность воздушной или кабельной линий электропередачи (далее – ЛЭП) в километрах по трассе (без учета количества кабелей (проводов) в линии), а также количество пунктов секционирования и точек учета электрической энергии (мощности) в штуках.
B16: 6) В графах 5, 9, 13 указывается размер присоединенной максимальной мощности энергопринимающего устройства заявителя согласно договору.
B17: 8) В графах 6, 10, 14 указываются расходы на строительство введенных в эксплуатацию объектов электросетевого хозяйства ТСО, а также на обеспечение средствами коммерческого учета электрической энергии (мощности), в соответствии с учетной политикой ТСО (например: стоимость принимаемых основных фондов согласно формам КС-14, КС-11).
B18: 9) В графах 4, 6, 8, 10, 12, 14, 16, 18 указывается размерность показателей с учётом обязательного заполнения трех знаков после запятой
B19: 10) Графы 15-18 заполняются ТСО только в случае, если за 3 предыдущих года ТСО не осуществлялось строительство объектов электросетевого хозяйства, а также обеспечение средствами коммерческого учета электрической энергии (мощности), в отношении которых устанавливаются стандартизированные тарифные ставки, по планируемым расходам, определенным по сметам, выполненным с применением сметных нормативов.
B20: ="11) За периоды " &IF(Титульный!C12="","--- выберите период на листе Титульный --- ",(Титульный!C12-3)&", "&(Титульный!C12-2)&", "&(Титульный!C12-1)&" годы ") & "всем ТСО необходимо представить в РЭК Свердловской области документы, подтверждающие расходы на выполнение мероприятий по строительству объектов электросетевого хозяйства ТСО, а также на обеспечение средствами коммерческого учета электрической энергии." -> 11) За периоды 2018, 2019, 2020 годы всем ТСО необходимо представить в РЭК Свердловской области документы, подтверждающие расходы на выполнение мероприятий по строительству объектов электросетевого хозяйства ТСО, а также на обеспечение средствами коммерческого учета электрической энергии.
B22: II. Заполнение приложений 2.1, 2.2, 2.3.
B23: ="1) Приложение 2.1 заполняется за " &IF(Титульный!C12="","--- выберите период на листе Титульный.",(Титульный!C12-3)&" год.") -> 1) Приложение 2.1 заполняется за 2018 год.
B24: ="2) Приложение 2.2 заполняется за " &IF(Титульный!C12="","--- выберите период на листе Титульный.",(Титульный!C12-2)&" год.") -> 2) Приложение 2.2 заполняется за 2019 год.
B25: ="3) Приложение 2.3 заполняется за " &IF(Титульный!C12="","--- выберите период на листе Титульный.",(Титульный!C12-1)&" год.") -> 3) Приложение 2.3 заполняется за 2020 год.
B26: 4) В графах 3-6 пункта 1 указываются расходы ТСО на выполнение мероприятий по подготовке и выдаче технических условий заявителю в тыс. рублей.
B27: 5) В графах 3-6 пунктов 2.1, 2.2 указываются расходы ТСО на выполнение мероприятий по проверке сетевой организацией выполнения заявителем технических условий в тыс. рублей.
B28: 6) В графах 8-11 указывается количество технологических присоединений в соответствии с выполненными договорами в штуках.
B29: 7) В графах 13-16 указывается объем присоединенной максимальной мощности в соответствии с выполненными договорами в кВт.
B30: ="8) За периоды " &IF(Титульный!C12="","--- выберите период на листе Титульный --- ",(Титульный!C12-3)&", "&(Титульный!C12-2)&", "&(Титульный!C12-1)&" годы ") & "всем ТСО необходимо представить в РЭК Свердловской области документы, подтверждающие расходы, количество техприсоединений, объем максимальной мощности." -> 8) За периоды 2018, 2019, 2020 годы всем ТСО необходимо представить в РЭК Свердловской области документы, подтверждающие расходы, количество техприсоединений, объем максимальной мощности.
B32: III. Заполнение приложений 3.1, 3.2.
B33: 1) Приложение 3.1 заполняется ТСО по мероприятию: подготовка и выдача сетевой организацией технических условий заявителю.
B34: 2) Приложение 3.2 заполняется ТСО по мероприятию: проверка сетевой организацией выполнения заявителем технических условий.
B35: 3) В графах 3-5 указываются расходы на выполнение мероприятий по технологическому присоединению с разбивкой по каждому показателю в тыс. рублей в соответствии с учетной политикой ТСО и бухгалтерской отчетностью.
B36: 4) В графах 3-5 указывается размерность показателей с учётом обязательного заполнения трех знаков после запятой.
B37: ="5) За периоды " &IF(Титульный!C12="","--- выберите период на листе Титульный --- ",(Титульный!C12-3)&", "&(Титульный!C12-2)&", "&(Титульный!C12-1)&" годы ") & "всем ТСО необходимо представить в РЭК Свердловской области документы, подтверждающие расходы по технологическому присоединению." -> 5) За периоды 2018, 2019, 2020 годы всем ТСО необходимо представить в РЭК Свердловской области документы, подтверждающие расходы по технологическому присоединению.
B39: IV. Заполнение приложений 5.1, 5.2.
B40: 1) Приложение 5.1 заполняется для территорий городских населенных пунктов.
B41: 2) Приложения 5.2 заполняется для территорий, не относящихся к городским населенным пунктам.
B42: 3) В графе 2 указываются характеристики объекта электросетевого хозяйства/средства коммерческого учета электрической энергии (мощности), введенного в эксплуатацию (наименование мероприятия, выполненного ТСО в соответствии с выданными техническими условиями).
B43: 4) В графах 3, 6, 9 указывается уровень напряжения, соответствующий уровню напряжения объекта электросетевого хозяйства/средства коммерческого учета электрической энергии (мощности), введенного в эксплуатацию (наименование мероприятия, выполненного ТСО в соответствии с выданными техническими условиями).
B44: 5) В графах 4, 7, 10 указывается протяженность ЛЭП в километрах по трассе (без учета количества кабелей (проводов) в линии) с учётом обязательного заполнения трех знаков после запятой, а также количество пунктов секционирования, точек учета электрической энергии (мощности) в штуках.
B45: 6) В графах 5, 8, 11 указывается размер присоединённой максимальной мощности энергопринимающего устройства заявителя согласно договору.

Sheet Прил. № 1.1 город
G11: Приложение № 1.1 к Методическим указаниям по определению размера платы за технологическое присоединение к электрическим сетям
A12: dd_hide/show | B12: hide | C12: range_name | D12: address_title | E12: address_svod | G12: Расходы на строительство введенных в эксплуатацию объектов электросетевого хозяйства для целей технологического присоединения и для целей реализации иных мероприятий инвестиционной программы территориальной сетевой организации, а также на обеспечение средствами коммерческого учета электрической энергии (мощности) (заполняется для территорий городских населенных пунктов)
G13: № п/п | H13: Объект электросетевого хозяйства/Средство коммерческого учета электрической энергии (мощности) | N13: Год ввода объекта 2018 | R13: Год ввода объекта 2019 | V13: Год ввода объекта 2020 | Z13: План*
N14: уровень напряжения, кВ | O14: протяженность (для линий электропередачи), км. / количество (для пунктов секционирования, точек учета ээ), шт. | P14: максимальная мощность, кВт | Q14: расходы на строительство объекта/на обеспечение средствами коммерческого учета электрической энергии (мощности), тыс. руб. | R14: уровень напряжения, кВ | S14: протяженность (для линий электропередачи), км. / количество (для пунктов секционирования, точек учета ээ), шт. | T14: максимальная мощность, кВт | U14: расходы на строительство объекта/на обеспечение средствами коммерческого учета электрической энергии (мощности), тыс. руб. | V14: уровень напряжения, кВ | W14: протяженность (для линий электропередачи), км. / количество (для пунктов секционирования, точек учета ээ), шт. | X14: максимальная мощность, кВт | Y14: расходы на строительство объекта/на обеспечение средствами коммерческого учета электрической энергии (мощности), тыс. руб. | Z14: уровень напряжения, кВ | AA14: протяженность (для линий электропередачи), км. / количество (для пунктов секционирования, точек учета ээ), шт. | AB14: максимальная мощность, кВт | AC14: расходы на строительство объекта/на обеспечение средствами коммерческого учета электрической энергии (мощности), тыс. руб.
A15: ddShPr11City_rstart | G15: 1 | H15: 2 | N15: 3 | O15: 4 | P15: 5 | Q15: 6 | R15: 7 | S15: 8 | T15: 9 | U15: 10 | V15: 11 | W15: 12 | X15: 13 | Y15: 14 | Z15: 15 | AA15: 16 | AB15: 17 | AC15: 18
G16: 1. | H16: СТРОИТЕЛЬСТВО ВОЗДУШНЫХ ЛИНИЙ ЭЛЕКТРОПЕРЕДАЧИ | O16: =SUM(O18:O24) -> 0 | P16: =SUM(P18:P24) -> 0 | Q16: =SUM(Q18:Q24) -> 0 | S16: =SUM(S18:S24) -> 0.341 | T16: =SUM(T18:T24) -> 61 | U16: =SUM(U18:U24) -> 114.60176 | W16: =SUM(W18:W24) -> 1.209 | X16: =SUM(X18:X24) -> 301 | Y16: =SUM(Y18:Y24) -> 863.91739 | AA16: =SUM(AA18:AA24) -> 0.999 | AB16: =SUM(AB18:AB24) -> 211 | AC16: =SUM(AC18:AC24) -> 613.067575
H17: тип опор: | I17: тип провода: | J17: материал провода: | K17: сечение провода: | L17: количество цепей: | M17: уровень напряжения:
B18: 1
C19: VL | D19: =ROW($D$17) -> 17 | F19: Удалить | G19: =$G$16 & (ROWS($G$18:G19)-2)+1&"." -> 1.1. | H19: деревянные | I19: изолированный | J19: алюминиевый | K19: до 50 мм2 включительно | L19: одноцепная | M19: 0,4 кВ и ниже | R19: 0.4 | S19: 0.212 | T19: 30 | U19: 40.38535 | Z19: 0.4 | AA19: =(S19+W19)/1 -> 0.212 | AB19: =(T19+X19)/1 -> 30 | AC19: 40.38535
C20: VL | D20: =ROW($D$17) -> 17 | F20: Удалить | G20: =$G$16 & (ROWS($G$18:G20)-2)+1&"." -> 1.2. | H20: железобетонные опоры | I20: изолированный | J20: алюминиевый | K20: до 50 мм2 включительно | L20: одноцепная | M20: 0,4 кВ и ниже | R20: 0.4 | S20: 0.129 | T20: 31 | U20: 74.21641 | V20: 0.4 | W20: 0.973 | X20: 271 | Y20: 656.68674 | Z20: 0.4 | AA20: =(S20+W20)/2 -> 0.551 | AB20: =(T20+X20)/2 -> 151 | AC20: =(U20+Y20)/2 -> 365.451575
C21: VL | D21: =ROW($D$17) -> 17 | F21: Удалить | G21: =$G$16 & (ROWS($G$18:G21)-2)+1&"." -> 1.3. | H21: железобетонные опоры | I21: изолированный | J21: алюминиевый | K21: до 50 мм2 включительно | L21: одноцепная | M21: 1-20 кВ | V21: 6 | W21: 0.036 | X21: 15 | Y21: 63.65783 | Z21: 6 | AA21: =(S21+W21)/1 -> 0.036 | AB21: =(T21+X21)/1 -> 15 | AC21: 63.65783
C22: VL | D22: =ROW($D$17) -> 17 | F22: Удалить | G22: =$G$16 & (ROWS($G$18:G22)-2)+1&"." -> 1.4. | H22: железобетонные опоры | I22: изолированный | J22: алюминиевый | K22: от 50 до 100 мм2 включительно | L22: одноцепная | M22: 0,4 кВ и ниже | V22: 0.4 | W22: 0.2 | X22: 15 | Y22: 143.57282 | Z22: 0.4 | AA22: =(S22+W22)/1 -> 0.2 | AB22: 15 | AC22: 143.57282
B23: 1 | C23: VL | D23: =ROW($D$17) -> 17 | F23: Удалить | G23: =$G$16 & (ROWS($G$18:G23)-2)+1&"." -> 1.5. | M23: 0,4 кВ и ниже
B24: 1 | M24: 0,4 кВ и ниже
H25: Добавить
B26: 1
G27: 2. | H27: СТРОИТЕЛЬСТВО КАБЕЛЬНЫХ ЛИНИЙ ЭЛЕКТРОПЕРЕДАЧИ | O27: =SUM(O29:O32) -> 0 | P27: =SUM(P29:P32) -> 0 | Q27: =SUM(Q29:Q32) -> 0 | S27: =SUM(S29:S32) -> 0 | T27: =SUM(T29:T32) -> 0 | U27: =SUM(U29:U32) -> 0 | W27: =SUM(W29:W32) -> 0.38 | X27: =SUM(X29:X32) -> 132 | Y27: =SUM(Y29:Y32) -> 338.17923 | AA27: =SUM(AA29:AA32) -> 0.38 | AB27: =SUM(AB29:AB32) -> 132 | AC27: =SUM(AC29:AC32) -> 338.17923
H28: способ прокладки: | I28: количество жил: | J28: тип изоляции: | K28: сечение провода: | L28: количество кабелей в траншее, канале, туннеле или коллекторе, на галерее или эстакаде, труб в скважине: | M28: уровень напряжения:
B29: 1
C30: KL | D30: =ROW($D$28) -> 28 | F30: Удалить | G30: =$G$27 & (ROWS($G$29:G30)-2)+1&"." -> 2.1. | H30: в траншеях | I30: многожильные | J30: резиновая и пластмассовая | K30: от 100 до 200 мм2 включительно | L30: один | M30: 0,4 кВ и ниже | V30: 0.4 | W30: 0.38 | X30: 132 | Y30: 338.17923 | Z30: =V30 -> 0.4 | AA30: =W30 -> 0.38 | AB30: =X30 -> 132 | AC30: 338.17923
B31: 1 | C31: KL | D31: =ROW($D$28) -> 28 | F31: Удалить | G31: =$G$27 & (ROWS($G$29:G31)-2)+1&"." -> 2.2.
B32: 1
H33: Добавить
B34: 1
G35: 3. | H35: СТРОИТЕЛЬСТВО ПУНКТОВ СЕКЦИОНИРОВАНИЯ (РЕКЛОУЗЕРОВ, РАСПРЕДЕЛИТЕЛЬНЫХ ПУНКТОВ, ПЕРЕКЛЮЧАТЕЛЬНЫХ ПУНКТОВ) | O35: =SUM(O37:O39) -> 0 | P35: =SUM(P37:P39) -> 0 | Q35: =SUM(Q37:Q39) -> 0 | S35: =SUM(S37:S39) -> 0 | T35: =SUM(T37:T39) -> 0 | U35: =SUM(U37:U39) -> 0 | W35: =SUM(W37:W39) -> 0 | X35: =SUM(X37:X39) -> 0 | Y35: =SUM(Y37:Y39) -> 0 | AA35: =SUM(AA37:AA39) -> 0 | AB35: =SUM(AB37:AB39) -> 0 | AC35: =SUM(AC37:AC39) -> 0
H36: пункт секционирования: | I36: номинальный ток: | J36: количество ячеек в распределительном или переключательном пункте: | K36: уровень напряжения:
B37: 1
B38: 1 | C38: PS | D38: =ROW($D$36) -> 36 | F38: Удалить | G38: =$G$35 & (ROWS($G$37:G38)-2)+1&"." -> 3.1.
B39: 1
H40: Добавить
B41: 1
G42: 4. | H42: СТРОИТЕЛЬСТВО ТРАНСФОРМАТОРНЫХ ПОДСТАНЦИЙ (ТП), ЗА ИСКЛЮЧЕНИЕМ РАСПРЕДЕЛИТЕЛЬНЫХ ТРАНСФОРМАТОРНЫХ ПОДСТАНЦИЙ (РТП), С УРОВНЕМ НАПРЯЖЕНИЯ ДО 35 КВ | O42: =SUM(O44:O47) -> 0 | P42: =SUM(P44:P47) -> 0 | Q42: =SUM(Q44:Q47) -> 0 | S42: =SUM(S44:S47) -> 0 | T42: =SUM(T44:T47) -> 0 | U42: =SUM(U44:U47) -> 0 | W42: =SUM(W44:W47) -> 1 | X42: =SUM(X44:X47) -> 15 | Y42: =SUM(Y44:Y47) -> 316.23271 | AA42: =SUM(AA44:AA47) -> 1 | AB42: =SUM(AB44:AB47) -> 15 | AC42: =SUM(AC44:AC47) -> 316.23271
H43: уровень напряжения: | I43: количество трансформаторов: | J43: трансформаторная мощность: | K43: тип трансформаторной подстанции:
B44: 1
C45: TS | D45: =ROW($D$43) -> 43 | F45: Удалить | G45: =$G$42 & (ROWS($G$44:G45)-2)+1&"." -> 4.1. | H45: 6/0,4 кВ | I45: однотрансформаторные | J45: до 25 кВА включительно | K45: столбовой/мачтовый | V45: 6/0,4 | W45: 1 | X45: 15 | Y45: 316.23271 | Z45: =V45 -> 6/0,4 | AA45: =W45 -> 1 | AB45: 15 | AC45: 316.23271
B46: 1 | C46: TS | D46: =ROW($D$43) -> 43 | F46: Удалить | G46: =$G$42 & (ROWS($G$44:G46)-2)+1&"." -> 4.2.
B47: 1
H48: Добавить
B49: 1
G50: 5. | H50: СТРОИТЕЛЬСТВО РАСПРЕДЕЛИТЕЛЬНЫХ ТРАНСФОРМАТОРНЫХ ПОДСТАНЦИЙ (РТП), С УРОВНЕМ НАПРЯЖЕНИЯ ДО 35 КВ | O50: =SUM(O52:O54) -> 0 | P50: =SUM(P52:P54) -> 0 | Q50: =SUM(Q52:Q54) -> 0 | S50: =SUM(S52:S54) -> 0 | T50: =SUM(T52:T54) -> 0 | U50: =SUM(U52:U54) -> 0 | W50: =SUM(W52:W54) -> 0 | X50: =SUM(X52:X54) -> 0 | Y50: =SUM(Y52:Y54) -> 0 | AA50: =SUM(AA52:AA54) -> 0 | AB50: =SUM(AB52:AB54) -> 0 | AC50: =SUM(AC52:AC54) -> 0
H51: количество трансформаторов: | I51: трансформаторная мощность: | J51: уровень напряжения:
B52: 1
B53: 1 | C53: RTP | D53: =ROW($D$51) -> 51 | F53: Удалить | G53: =$G$50 & (ROWS($G$52:G53)-2)+1&"." -> 5.1.
B54: 1
H55: Добавить
B56: 1
G57: 6. | H57: СТРОИТЕЛЬСТВО ПОДСТАНЦИЙ УРОВНЕМ НАПРЯЖЕНИЯ 35 КВ И ВЫШЕ (ПС) | O57: =SUM(O59:O61) -> 0 | P57: =SUM(P59:P61) -> 0 | Q57: =SUM(Q59:Q61) -> 0 | S57: =SUM(S59:S61) -> 0 | T57: =SUM(T59:T61) -> 0 | U57: =SUM(U59:U61) -> 0 | W57: =SUM(W59:W61) -> 0 | X57: =SUM(X59:X61) -> 0 | Y57: =SUM(Y59:Y61) -> 0 | AA57: =SUM(AA59:AA61) -> 0 | AB57: =SUM(AB59:AB61) -> 0 | AC57: =SUM(AC59:AC61) -> 0
H58: количество трансформаторов: | I58: трансформаторная мощность: | J58: уровень напряжения:
B59: 1
B60: 1 | C60: SP | D60: =ROW($D$58) -> 58 | F60: Удалить | G60: =$G$57 & (ROWS($G$59:G60)-2)+1&"." -> 6.1.
B61: 1
H62: Добавить
B63: 1
G64: 7. | H64: ОБЕСПЕЧЕНИЕ СРЕДСТВАМИ КОММЕРЧЕСКОГО УЧЕТА ЭЛЕКТРИЧЕСКОЙ ЭНЕРГИИ (МОЩНОСТИ) | O64: =SUM(O66:O68) -> 0 | P64: =SUM(P66:P68) -> 0 | Q64: 0 | S64: 0 | T64: 0 | U64: 0 | W64: 0 | X64: 0 | Y64: 0 | AA64: 0 | AB64: 0 | AC64: 0
H65: количество фаз: | I65: тип включения: | J65: уровень напряжения:
B66: 1
B67: 1 | C67: SKU | D67: =ROW($D$65) -> 65 | F67: Удалить | G67: =$G$64 & (ROWS($G$66:G67)-2)+1&"." -> 7.1.
B68: 1
H69: Добавить
B70: 1
G71: * - случае если в субъекте Российской Федерации за 3 предыдущих года не осуществлялось строительство тех объектов электросетевого хозяйства, в отношении которых устанавливаются стандартизированные тарифные ставки либо не осуществлялось обеспечение средствами коммерческого учета электрической энергии (мощности), расчет ставок может производиться исходя из данных за два предыдущих года, в случае отсутствия данных за два года - за предыдущий год, а при отсутствии данных за три года - по планируемым расходам, определенным по сметам, выполненным с применением сметных нормативов.
A72: ddShPr11City_rstop

Sheet Прил. № 1.2 не город
G11: Приложение № 1.2 к Методическим указаниям по определению размера платы за технологическое присоединение к электрическим сетям
A12: dd_name | B12: hide | C12: range_name | D12: address_title | E12: address_svod | G12: Расходы на строительство введенных в эксплуатацию объектов электросетевого хозяйства для целей технологического присоединения и для целей реализации иных мероприятий инвестиционной программы территориальной сетевой организации, а также на обеспечение средствами коммерческого учета электрической энергии (мощности) (заполняется для территорий, не относящихся к городским населенным пунктам)
G13: № п/п | H13: Объект электросетевого хозяйства/Средство коммерческого учета электрической энергии (мощности) | N13: Год ввода объекта 2018 | R13: Год ввода объекта 2019 | V13: Год ввода объекта 2020 | Z13: План*
N14: уровень напряжения, кВ | O14: протяженность (для линий электропередачи), км. / количество (для пунктов секционирования, точек учета ээ), шт. | P14: максимальная мощность, кВт | Q14: расходы на строительство объекта/на обеспечение средствами коммерческого учета электрической энергии (мощности), тыс. руб. | R14: уровень напряжения, кВ | S14: протяженность (для линий электропередачи), км. / количество (для пунктов секционирования, точек учета ээ), шт. | T14: максимальная мощность, кВт | U14: расходы на строительство объекта/на обеспечение средствами коммерческого учета электрической энергии (мощности), тыс. руб. | V14: уровень напряжения, кВ | W14: протяженность (для линий электропередачи), км. / количество (для пунктов секционирования, точек учета ээ), шт. | X14: максимальная мощность, кВт | Y14: расходы на строительство объекта/на обеспечение средствами коммерческого учета электрической энергии (мощности), тыс. руб. | Z14: уровень напряжения, кВ | AA14: протяженность (для линий электропередачи), км. / количество (для пунктов секционирования, точек учета ээ), шт. | AB14: максимальная мощность, кВт | AC14: расходы на строительство объекта/на обеспечение средствами коммерческого учета электрической энергии (мощности), тыс. руб.
A15: ddShPr12Cont_rstart | G15: 1 | H15: 2 | N15: 3 | O15: 4 | P15: 5 | Q15: 6 | R15: 7 | S15: 8 | T15: 9 | U15: 10 | V15: 11 | W15: 12 | X15: 13 | Y15: 14 | Z15: 15 | AA15: 16 | AB15: 17 | AC15: 18
G16: 1. | H16: СТРОИТЕЛЬСТВО ВОЗДУШНЫХ ЛИНИЙ ЭЛЕКТРОПЕРЕДАЧИ | O16: =SUM(O18:O21) -> 0 | P16: =SUM(P18:P21) -> 0 | Q16: =SUM(Q18:Q21) -> 0 | S16: =SUM(S18:S21) -> 0.714 | T16: =SUM(T18:T21) -> 15 | U16: =SUM(U18:U21) -> 207.92 | W16: =SUM(W18:W21) -> 0 | X16: =SUM(X18:X21) -> 0 | Y16: =SUM(Y18:Y21) -> 0 | AA16: =SUM(AA18:AA21) -> 0.714 | AB16: =SUM(AB18:AB21) -> 15 | AC16: =SUM(AC18:AC21) -> 207.92
H17: тип опор: | I17: тип провода: | J17: материал провода: | K17: сечение провода: | L17: количество цепей: | M17: уровень напряжения:
B18: 1
C19: VL | D19: =ROW($D$17) -> 17 | F19: Удалить | G19: =$G$16 & (ROWS($G$18:G19)-2)+1&"." -> 1.1. | H19: железобетонные опоры | I19: изолированный | J19: алюминиевый | K19: до 50 мм2 включительно | L19: одноцепная | M19: 1-20 кВ | R19: 6 | S19: 0.714 | T19: 15 | U19: 207.92 | Z19: =R19 -> 6 | AA19: =S19 -> 0.714 | AB19: 15 | AC19: 207.92
B20: 1 | C20: VL | D20: =ROW($D$17) -> 17 | F20: Удалить | G20: =$G$16 & (ROWS($G$18:G20)-2)+1&"." -> 1.2.
B21: 1
H22: Добавить
B23: 1
G24: 2. | H24: СТРОИТЕЛЬСТВО КАБЕЛЬНЫХ ЛИНИЙ ЭЛЕКТРОПЕРЕДАЧИ | O24: =SUM(O26:O28) -> 0 | P24: =SUM(P26:P28) -> 0 | Q24: =SUM(Q26:Q28) -> 0 | S24: =SUM(S26:S28) -> 0 | T24: =SUM(T26:T28) -> 0 | U24: =SUM(U26:U28) -> 0 | W24: =SUM(W26:W28) -> 0 | X24: =SUM(X26:X28) -> 0 | Y24: =SUM(Y26:Y28) -> 0 | AA24: =SUM(AA26:AA28) -> 0 | AB24: =SUM(AB26:AB28) -> 0 | AC24: =SUM(AC26:AC28) -> 0
H25: способ прокладки: | I25: количество жил: | J25: тип изоляции: | K25: сечение провода: | L25: количество кабелей в траншее, канале, туннеле или коллекторе, на галерее или эстакаде, труб в скважине: | M25: уровень напряжения:
B26: 1
B27: 1 | C27: KL | D27: =ROW($D$25) -> 25 | F27: Удалить | G27: =$G$24 & (ROWS($G$26:G27)-2)+1&"." -> 2.1.
B28: 1
H29: Добавить
B30: 1
G31: 3. | H31: СТРОИТЕЛЬСТВО ПУНКТОВ СЕКЦИОНИРОВАНИЯ (РЕКЛОУЗЕРОВ, РАСПРЕДЕЛИТЕЛЬНЫХ ПУНКТОВ, ПЕРЕКЛЮЧАТЕЛЬНЫХ ПУНКТОВ) | O31: =SUM(O33:O35) -> 0 | P31: =SUM(P33:P35) -> 0 | Q31: =SUM(Q33:Q35) -> 0 | S31: =SUM(S33:S35) -> 0 | T31: =SUM(T33:T35) -> 0 | U31: =SUM(U33:U35) -> 0 | W31: =SUM(W33:W35) -> 0 | X31: =SUM(X33:X35) -> 0 | Y31: =SUM(Y33:Y35) -> 0 | AA31: =SUM(AA33:AA35) -> 0 | AB31: =SUM(AB33:AB35) -> 0 | AC31: =SUM(AC33:AC35) -> 0
H32: пункт секционирования: | I32: номинальный ток: | K32: уровень напряжения:
B33: 1
B34: 1 | C34: PS | D34: =ROW($D$32) -> 32 | F34: Удалить | G34: =$G$31 & (ROWS($G$33:G34)-2)+1&"." -> 3.1.
B35: 1
H36: Добавить
B37: 1
G38: 4. | H38: СТРОИТЕЛЬСТВО ТРАНСФОРМАТОРНЫХ ПОДСТАНЦИЙ (ТП), ЗА ИСКЛЮЧЕНИЕМ РАСПРЕДЕЛИТЕЛЬНЫХ ТРАНСФОРМАТОРНЫХ ПОДСТАНЦИЙ (РТП), С УРОВНЕМ НАПРЯЖЕНИЯ ДО 35 КВ | O38: =SUM(O40:O43) -> 0 | P38: =SUM(P40:P43) -> 0 | Q38: =SUM(Q40:Q43) -> 0 | S38: =SUM(S40:S43) -> 1 | T38: =SUM(T40:T43) -> 15 | U38: =SUM(U40:U43) -> 282.28 | W38: =SUM(W40:W43) -> 0 | X38: =SUM(X40:X43) -> 0 | Y38: =SUM(Y40:Y43) -> 0 | AA38: =SUM(AA40:AA43) -> 1 | AB38: =SUM(AB40:AB43) -> 15 | AC38: =SUM(AC40:AC43) -> 282.28
H39: уровень напряжения: | I39: количество трансформаторов: | J39: трансформаторная мощность: | K39: тип трансформаторной подстанции:
B40: 1
C41: TS | D41: =ROW($D$39) -> 39 | F41: Удалить | G41: =$G$38 & (ROWS($G$40:G41)-2)+1&"." -> 4.1. | H41: 6/0,4 кВ | I41: однотрансформаторные | J41: до 25 кВА включительно | K41: столбовой/мачтовый | R41: 6 | S41: 1 | T41: 15 | U41: 282.28 | Z41: =R41 -> 6 | AA41: =S41 -> 1 | AB41: 15 | AC41: 282.28
B42: 1 | C42: TS | D42: =ROW($D$39) -> 39 | F42: Удалить | G42: =$G$38 & (ROWS($G$40:G42)-2)+1&"." -> 4.2.
B43: 1
H44: Добавить
B45: 1
G46: 5. | H46: СТРОИТЕЛЬСТВО РАСПРЕДЕЛИТЕЛЬНЫХ ТРАНСФОРМАТОРНЫХ ПОДСТАНЦИЙ (РТП), С УРОВНЕМ НАПРЯЖЕНИЯ ДО 35 КВ | O46: =SUM(O48:O50) -> 0 | P46: =SUM(P48:P50) -> 0 | Q46: =SUM(Q48:Q50) -> 0 | S46: =SUM(S48:S50) -> 0 | T46: =SUM(T48:T50) -> 0 | U46: =SUM(U48:U50) -> 0 | W46: =SUM(W48:W50) -> 0 | X46: =SUM(X48:X50) -> 0 | Y46: =SUM(Y48:Y50) -> 0 | AA46: =SUM(AA48:AA50) -> 0 | AB46: =SUM(AB48:AB50) -> 0 | AC46: =SUM(AC48:AC50) -> 0
H47: количество трансформаторов: | I47: трансформаторная мощность: | J47: уровень напряжения:
B48: 1
B49: 1 | C49: RTP | D49: =ROW($D$47) -> 47 | F49: Удалить | G49: =$G$46 & (ROWS($G$48:G49)-2)+1&"." -> 5.1.
B50: 1
H51: Добавить
B52: 1
G53: 6. | H53: СТРОИТЕЛЬСТВО ПОДСТАНЦИЙ УРОВНЕМ НАПРЯЖЕНИЯ 35 КВ И ВЫШЕ (ПС) | O53: =SUM(O55:O57) -> 0 | P53: =SUM(P55:P57) -> 0 | Q53: =SUM(Q55:Q57) -> 0 | S53: =SUM(S55:S57) -> 0 | T53: =SUM(T55:T57) -> 0 | U53: =SUM(U55:U57) -> 0 | W53: =SUM(W55:W57) -> 0 | X53: =SUM(X55:X57) -> 0 | Y53: =SUM(Y55:Y57) -> 0 | AA53: =SUM(AA55:AA57) -> 0 | AB53: =SUM(AB55:AB57) -> 0 | AC53: =SUM(AC55:AC57) -> 0
H54: количество трансформаторов: | I54: трансформаторная мощность: | J54: уровень напряжения:
B55: 1
B56: 1 | C56: SP | D56: =ROW($D$54) -> 54 | F56: Удалить | G56: =$G$53 & (ROWS($G$55:G56)-2)+1&"." -> 6.1.
B57: 1
H58: Добавить
B59: 1
G60: 7. | H60: ОБЕСПЕЧЕНИЕ СРЕДСТВАМИ КОММЕРЧЕСКОГО УЧЕТА ЭЛЕКТРИЧЕСКОЙ ЭНЕРГИИ (МОЩНОСТИ) | O60: =SUM(O62:O64) -> 0 | P60: =SUM(P62:P64) -> 0 | Q60: 0 | S60: 0 | T60: 0 | U60: 0 | W60: 0 | X60: 0 | Y60: 0 | AA60: 0 | AB60: 0 | AC60: 0
H61: количество фаз: | I61: тип включения: | J61: уровень напряжения:
B62: 1
B63: 1 | C63: SKU | D63: =ROW($D$61) -> 61 | F63: Удалить | G63: =$G$60 & (ROWS($G$62:G63)-2)+1&"." -> 7.1.
B64: 1
H65: Добавить
B66: 1
G67: * - случае если в субъекте Российской Федерации за 3 предыдущих года не осуществлялось строительство тех объектов электросетевого хозяйства, в отношении которых устанавливаются стандартизированные тарифные ставки либо не осуществлялось обеспечение средствами коммерческого учета электрической энергии (мощности), расчет ставок может производиться исходя из данных за два предыдущих года, в случае отсутствия данных за два года - за предыдущий год, а при отсутствии данных за три года - по планируемым расходам, определенным по сметам, выполненным с применением сметных нормативов.
A68: ddShPr12Cont_rstop

Sheet Прил. № 2.1 (год-3)
A1: Приложение № 2.1 к Методическим указаниям по определению размера платы за технологическое присоединение к электрическим сетям
A2: ="Расходы на выполнение мероприятий по технологическому присоединению, предусмотренных пунктами 'а' и 'в' пункта 16 Методических указаний за " &IF(Титульный!C12="","--- выберите период на листе Титульный ---",(Титульный!C12-3)) & " год" -> Расходы на выполнение мероприятий по технологическому присоединению, предусмотренных пунктами 'а' и 'в' пункта 16 Методических указаний за 2018 год
A3: № п/п | B3: Наименование мероприятий | C3: ="Год формирования расходов (согласно учетной политике сетевой организации) за " &IF(Титульный!C12="","--- выберите период на листе Титульный ---",(Титульный!C12-3)) & " год" -> Год формирования расходов (согласно учетной политике сетевой организации) за 2018 год
C4: Информация для расчета стандартизированной тарифной ставки С1 с учетом дифференциации по уровням напряжения и максимальной мощности | R4: расходы на одно присоединение (руб. на 1 ТП)
C5: расходы согласно Приложению № 3 по каждому мероприятию (тыс. руб.) | H5: количество технологических присоединений (шт.) | M5: объем максимальной мощности (кВт) | Q5: Итого расходы на одно присоединение (тыс.руб. на 1 ТП) (гр.7/ гр.12)
C6: до 20 кВ включительно | E6: свыше 20 кВ | G6: Итого (гр.3+гр.4+гр.5 +гр.6) | H6: до 20 кВ включительно | J6: свыше 20 кВ | L6: Итого (гр.8+гр.9+гр.10+гр.11) | M6: до 20 кВ включительно | O6: свыше 20 кВ | R6: до 35 кВ | T6: свыше 35 кВ включительно
C7: до 670 кВт | D7: свыше 670 кВт включительно | E7: до 670 кВт | F7: свыше 670 кВт включительно | H7: до 670 кВт | I7: свыше 670 кВт включительно | J7: до 670 кВт | K7: свыше 670 кВт включительно | M7: до 670 кВт | N7: свыше 670 кВт включительно | O7: до 670 кВт | P7: свыше 670 кВт включительно | R7: до 8900 кВт | S7: свыше 8900 кВт включительно | T7: до 8900 кВт | U7: свыше 8900 кВт включительно
A8: 1 | B8: 2 | C8: 3 | D8: 4 | E8: 5 | F8: 6 | G8: 7 | H8: 8 | I8: 9 | J8: 10 | K8: 11 | L8: 12 | M8: 13 | N8: 14 | O8: 15 | P8: 16 | Q8: 17 | R8: 15 | S8: 16 | T8: 17 | U8: 18
A9: 1 | B9: Подготовка и выдача сетевой организацией технических условий заявителю | G9: =C9+D9+E9+F9 -> 0 | L9: =H9+I9+J9+K9 -> 0 | Q9: =IF(L9=0,0, G9/L9) -> 0 | R9: =IF(H9=0,0,C9/H9) -> 0 | S9: 0 | T9: 0 | U9: 0
A10: 2 | B10: Проверка сетевой организацией выполнения заявителем технических условий | C10: - | D10: - | E10: - | F10: - | G10: - | H10: - | I10: - | J10: - | K10: - | L10: - | M10: - | N10: - | O10: - | P10: - | Q10: -
A11: 3 | B11: Итого | C11: =C9+C10 ->  | D11: =D9+D10 -> 
A12: 2.1 | B12: Выдача сетевой организацией акта об осуществлении технологического присоединения заявителям, указанным в пунктах 12(1) и 14 Правил технологического присоединения, кроме случаев, если технологическое присоединение энергопринимающих устройств таких заявителей осуществляется на уровне напряжения выше 0,4 кВ | G12: =C12+D12+E12+F12 -> 0 | L12: =H12+I12+J12+K12 -> 0 | Q12: =IF(L12=0,0, G12/L12) -> 0 | R12: =IF(H12=0,0,C12/H12) -> 0 | S12: 0 | T12: 0 | U12: 0
A13: 2.2 | B13: Проверка сетевой организацией выполнения технических условий заявителями (за исключением заявителей, указанных в пункте 2.1 таблицы) | G13: =C13+D13+E13+F13 -> 0 | L13: =H13+I13+J13+K13 -> 0 | Q13: =IF(L13=0,0, G13/L13) -> 0 | R13: 0 | S13: 0 | T13: 0 | U13: 0

Sheet Прил. № 2.2 (год-2)
A1: Приложение № 2.2 к Методическим указаниям по определению размера платы за технологическое присоединение к электрическим сетям
A2: ="Расходы на выполнение мероприятий по технологическому присоединению, предусмотренных пунктами 'а' и 'в' пункта 16 Методических указаний за " &IF(Титульный!C12="","--- выберите период на листе Титульный ---",(Титульный!C12-2)) & " год" -> Расходы на выполнение мероприятий по технологическому присоединению, предусмотренных пунктами 'а' и 'в' пункта 16 Методических указаний за 2019 год
A3: № п/п | B3: Наименование мероприятий | C3: ="Год формирования расходов (согласно учетной политике сетевой организации) за " &IF(Титульный!C12="","--- выберите период на листе Титульный ---",(Титульный!C12-2)) & " год" -> Год формирования расходов (согласно учетной политике сетевой организации) за 2019 год
C4: Информация для расчета стандартизированной тарифной ставки С1 с учетом дифференциации по уровням напряжения и максимальной мощности | R4: расходы на одно присоединение (руб. на 1 ТП)
C5: расходы согласно Приложению № 3 по каждому мероприятию (тыс. руб.) | H5: количество технологических присоединений (шт.) | M5: объем максимальной мощности (кВт) | Q5: Итого расходы на одно присоединение (тыс.руб. на 1 ТП) (гр.7/ гр.12)
C6: до 20 кВ включительно | E6: свыше 20 кВ | G6: Итого (гр.3+гр.4+гр.5 +гр.6) | H6: до 20 кВ включительно | J6: свыше 20 кВ | L6: Итого (гр.8+гр.9+гр.10+гр.11) | M6: до 20 кВ включительно | O6: свыше 20 кВ | R6: до 35 кВ | T6: свыше 35 кВ включительно
C7: до 670 кВт | D7: свыше 670 кВт включительно | E7: до 670 кВт | F7: свыше 670 кВт включительно | H7: до 670 кВт | I7: свыше 670 кВт включительно | J7: до 670 кВт | K7: свыше 670 кВт включительно | M7: до 670 кВт | N7: свыше 670 кВт включительно | O7: до 670 кВт | P7: свыше 670 кВт включительно | R7: до 8900 кВт | S7: свыше 8900 кВт включительно | T7: до 8900 кВт | U7: свыше 8900 кВт включительно
A8: 1 | B8: 2 | C8: 3 | D8: 4 | E8: 5 | F8: 6 | G8: 7 | H8: 8 | I8: 9 | J8: 10 | K8: 11 | L8: 12 | M8: 13 | N8: 14 | O8: 15 | P8: 16 | Q8: 17 | R8: 15 | S8: 16 | T8: 17 | U8: 18
A9: 1 | B9: Подготовка и выдача сетевой организацией технических условий заявителю | C9: ='Прил. № 3.1 (''а'' п.16)'!D5 -> 205.9363868 | G9: =C9+D9+E9+F9 -> 205.9363868 | H9: 48 | L9: =H9+I9+J9+K9 -> 48 | M9: 613.5 | Q9: =IF(L9=0,0, G9/L9) -> 4.290341392 | R9: =IF(H9=0,0,C9/H9) -> 4.290341392 | S9: 0 | T9: 0 | U9: 0
A10: 2 | B10: Проверка сетевой организацией выполнения заявителем технических условий | C10: - | D10: - | E10: - | F10: - | G10: - | H10: - | I10: - | J10: - | K10: - | L10: - | M10: - | N10: - | O10: - | P10: - | Q10: -
A11: 3 | B11: Итого | C11: =C9+C10 ->  | D11: =D9+D10 -> 
A12: 2.1 | B12: Выдача сетевой организацией акта об осуществлении технологического присоединения заявителям, указанным в пунктах 12(1) и 14 Правил технологического присоединения, кроме случаев, если технологическое присоединение энергопринимающих устройств таких заявителей осуществляется на уровне напряжения выше 0,4 кВ | C12: ='Прил. № 3.2 (''в'' п.16)'!D5 -> 448.7773032 | G12: =C12+D12+E12+F12 -> 448.7773032 | H12: 48 | L12: =H12+I12+J12+K12 -> 48 | M12: 613.5 | Q12: =IF(L12=0,0, G12/L12) -> 9.349527149 | R12: =IF(H12=0,0,C12/H12) -> 9.349527149 | S12: 0 | T12: 0 | U12: 0
A13: 2.2 | B13: Проверка сетевой организацией выполнения технических условий заявителями (за исключением заявителей, указанных в пункте 2.1 таблицы) | G13: =C13+D13+E13+F13 -> 0 | L13: =H13+I13+J13+K13 -> 0 | Q13: =IF(L13=0,0, G13/L13) -> 0 | R13: 0 | S13: 0 | T13: 0 | U13: 0

Sheet Прил. № 2.3 (год-1)
A1: Приложение № 2.3 к Методическим указаниям по определению размера платы за технологическое присоединение к электрическим сетям
A2: ="Расходы на выполнение мероприятий по технологическому присоединению, предусмотренных пунктами 'а' и 'в' пункта 16 Методических указаний за " &IF(Титульный!C12="","--- выберите период на листе Титульный ---",(Титульный!C12-1)) & " год" -> Расходы на выполнение мероприятий по технологическому присоединению, предусмотренных пунктами 'а' и 'в' пункта 16 Методических указаний за 2020 год
A3: № п/п | B3: Наименование мероприятий | C3: ="Год формирования расходов (согласно учетной политике сетевой организации) за " &IF(Титульный!C12="","--- выберите период на листе Титульный ---",(Титульный!C12-1)) & " год" -> Год формирования расходов (согласно учетной политике сетевой организации) за 2020 год
C4: Информация для расчета стандартизированной тарифной ставки С1 с учетом дифференциации по уровням напряжения и максимальной мощности | R4: расходы на одно присоединение (руб. на 1 ТП)
C5: расходы согласно Приложению № 3 по каждому мероприятию (тыс. руб.) | H5: количество технологических присоединений (шт.) | M5: объем максимальной мощности (кВт) | Q5: Итого расходы на одно присоединение (тыс.руб. на 1 ТП) (гр.7/ гр.12)
C6: до 20 кВ включительно | E6: свыше 20 кВ | G6: Итого (гр.3+гр.4+гр.5 +гр.6) | H6: до 20 кВ включительно | J6: свыше 20 кВ | L6: Итого (гр.8+гр.9+гр.10+гр.11) | M6: до 20 кВ включительно | O6: свыше 20 кВ | R6: до 35 кВ | T6: свыше 35 кВ включительно
C7: до 670 кВт | D7: свыше 670 кВт включительно | E7: до 670 кВт | F7: свыше 670 кВт включительно | H7: до 670 кВт | I7: свыше 670 кВт включительно | J7: до 670 кВт | K7: свыше 670 кВт включительно | M7: до 670 кВт | N7: свыше 670 кВт включительно | O7: до 670 кВт | P7: свыше 670 кВт включительно | R7: до 8900 кВт | S7: свыше 8900 кВт включительно | T7: до 8900 кВт | U7: свыше 8900 кВт включительно
A8: 1 | B8: 2 | C8: 3 | D8: 4 | E8: 5 | F8: 6 | G8: 7 | H8: 8 | I8: 9 | J8: 10 | K8: 11 | L8: 12 | M8: 13 | N8: 14 | O8: 15 | P8: 16 | Q8: 17 | R8: 15 | S8: 16 | T8: 17 | U8: 18
A9: 1 | B9: Подготовка и выдача сетевой организацией технических условий заявителю | C9: ='Прил. № 3.1 (''а'' п.16)'!C5 -> 281.1101576 | G9: =C9+D9+E9+F9 -> 281.1101576 | H9: 74 | L9: =H9+I9+J9+K9 -> 74 | M9: 1171 | Q9: =IF(L9=0,0, G9/L9) -> 3.798785914 | R9: =IF(H9=0,0,C9/H9) -> 3.798785914 | S9: 0 | T9: 0 | U9: 0
A10: 2 | B10: Проверка сетевой организацией выполнения заявителем технических условий | C10: - | D10: - | E10: - | F10: - | G10: - | H10: - | I10: - | J10: - | K10: - | L10: - | M10: - | N10: - | O10: - | P10: - | Q10: -
A11: 3 | B11: Итого | C11: =C9+C10 ->  | D11: =D9+D10 -> 
A12: 2.1 | B12: Выдача сетевой организацией акта об осуществлении технологического присоединения заявителям, указанным в пунктах 12(1) и 14 Правил технологического присоединения, кроме случаев, если технологическое присоединение энергопринимающих устройств таких заявителей осуществляется на уровне напряжения выше 0,4 кВ | C12: ='Прил. № 3.2 (''в'' п.16)'!C5*0.932432432432432 -> 494.8362436 | G12: =C12+D12+E12+F12 -> 494.8362436 | H12: 69 | L12: =H12+I12+J12+K12 -> 69 | M12: 1071 | Q12: =IF(L12=0,0, G12/L12) -> 7.171539762 | R12: =IF(H12=0,0,C12/H12) -> 7.171539762 | S12: 0 | T12: 0 | U12: 0
A13: 2.2 | B13: Проверка сетевой организацией выполнения технических условий заявителями (за исключением заявителей, указанных в пункте 2.1 таблицы) | C13: ='Прил. № 3.2 (''в'' п.16)'!C5*0.0675675675675676 -> 35.85769881 | G13: =C13+D13+E13+F13 -> 35.85769881 | H13: 5 | L13: =H13+I13+J13+K13 -> 5 | M13: 100 | Q13: =IF(L13=0,0, G13/L13) -> 7.171539762 | R13: 7.171539762 | S13: 0 | T13: 0 | U13: 0

Sheet Прил. № 3.1 ('а' п.16)
A1: Приложение № 3.1 к Методическим указаниям по определению размера платы за технологическое присоединение к электрическим сетям
A2: ="Расчет фактических расходов на выполнение мероприятий по технологическому присоединению, связанных с подготовкой и выдачей сетевой организацией технических условий заявителю, предусмотренных подпунктом 'а' пункта 16 Методических указаний за " &IF(Титульный!C12="","--- выберите период на листе Титульный ---",(Титульный!C12-3) & "–" & (Титульный!C12-1) ) & " годы" -> Расчет фактических расходов на выполнение мероприятий по технологическому присоединению, связанных с подготовкой и выдачей сетевой организацией технических условий заявителю, предусмотренных подпунктом 'а' пункта 16 Методических указаний за 2018–2020 годы
A3: № п/п | B3: Показатели | C3: =CONCATENATE("Данные за " &IF(Титульный!C12="","--- выберите период на листе Титульный ---",(Титульный!C12-1)) & " год,", CHAR(10)," тыс. рублей") -> Данные за 2020 год, тыс. рублей | D3: =CONCATENATE("Данные за " &IF(Титульный!C12="","--- выберите период на листе Титульный ---",(Титульный!C12-2)) & " год,", CHAR(10)," тыс. рублей") -> Данные за 2019 год, тыс. рублей | E3: =CONCATENATE("Данные за " &IF(Титульный!C12="","--- выберите период на листе Титульный ---",(Титульный!C12-3)) & " год,", CHAR(10)," тыс. рублей") -> Данные за 2018 год, тыс. рублей | F3: Итого, тыс. рублей
A4: 1 | B4: 2 | C4: 3 | D4: 4 | E4: 5 | F4: 6
A5: 1 | B5: Расходы по выполнению мероприятий по технологическому присоединению, всего | C5: =C6+C7+C8+C9+C10+C19 -> 281.1101576 | D5: =D6+D7+D8+D9+D10+D19 -> 205.9363868 | E5: =E6+E7+E8+E9+E10+E19 -> 0 | F5: =C5+D5+E5 -> 487.0465444
A6: 1.1 | B6: Вспомогательные материалы | C6: =[1]Справка!$D$5/1000 -> 23.32554291 | D6: =[2]Справка!$D$4/1000 -> 7.311784134 | F6: =C6+D6+E6 -> 30.63732705
A7: 1.2 | B7: Энергия на хозяйственные нужды | F7: 0
A8: 1.3 | B8: Оплата труда ППП | C8: =[1]Справка!$D$9/1000 -> 86.9792023 | D8: =[2]Справка!$D$8/1000 -> 62.02315691 | F8: 149.0023592
A9: 1.4 | B9: Отчисления на страховые взносы | C9: =[1]Справка!$D$10/1000 -> 25.16719644 | D9: =[2]Справка!$D$9/1000 -> 18.49972777 | F9: 43.66692421
A10: 1.5 | B10: Прочие расходы, всего, в том числе: | C10: =SUM(C11:C13) -> 145.638216 | D10: =SUM(D11:D13) -> 118.101718 | E10: =SUM(E11:E13) -> 0 | F10: 263.739934
A11: 1.5.1 | B11: работы и услуги производственного характера | C11: =[1]Справка!$D$11/1000 -> 145.638216 | D11: 118.101718 | F11: 263.739934
A12: 1.5.2 | B12: налоги и сборы, уменьшающие налогооблагаемую базу на прибыль организаций, всего | F12: 0
A13: 1.5.3 | B13: работы и услуги непроизводственного характера, в том числе: | C13: =SUM(C14:C18) -> 0 | D13: =SUM(D14:D18) -> 0 | E13: =SUM(E14:E18) -> 0 | F13: 0
A14: 1.5.3.1 | B14: услуги связи | F14: 0
A15: 1.5.3.2 | B15: расходы на охрану и пожарную безопасность | F15: 0
A16: 1.5.3.3 | B16: расходы на информационное обслуживание, иные услуги, связанные с деятельностью по технологическому присоединению | F16: 0
A17: 1.5.3.4 | B17: плата за аренду имущества | F17: 0
A18: 1.5.3.5 | B18: другие прочие расходы, связанные с производством и реализацией | F18: 0
A19: 1.6 | B19: Внереализованные расходы, всего | C19: =SUM(C20:C23) -> 0 | D19: =SUM(D20:D23) -> 0 | E19: =SUM(E20:E23) -> 0 | F19: 0
A20: 1.6.1 | B20: расходы на услуги банков | F20: 0
A21: 1.6.2 | B21: % за пользование кредитом | F21: 0
A22: 1.6.3 | B22: прочие обоснованные расходы | F22: 0
A23: 1.6.4 | B23: денежные выплаты социального характера ( по Коллективному договору) | F23: 0

Sheet Прил. № 3.2 ('в' п.16)
A1: Приложение № 3.2 к Методическим указаниям по определению размера платы за технологическое присоединение к электрическим сетям
A2: ="Расчет фактических расходов на выполнение мероприятий по технологическому присоединению, связанных с проверкой сетевой организацией выполнения заявителем технических условий, предусмотренных подпунктом 'в' пункта 16 Методических указаний за " &IF(Титульный!C12="","--- выберите период на листе Титульный ---",(Титульный!C12-3) & "–" & (Титульный!C12-1) ) & " годы" -> Расчет фактических расходов на выполнение мероприятий по технологическому присоединению, связанных с проверкой сетевой организацией выполнения заявителем технических условий, предусмотренных подпунктом 'в' пункта 16 Методических указаний за 2018–2020 годы
A3: № п/п | B3: Показатели | C3: =CONCATENATE("Данные за " &IF(Титульный!C12="","--- выберите период на листе Титульный ---",(Титульный!C12-1)) & " год,", CHAR(10)," тыс. рублей") -> Данные за 2020 год, тыс. рублей | D3: =CONCATENATE("Данные за " &IF(Титульный!C12="","--- выберите период на листе Титульный ---",(Титульный!C12-2)) & " год,", CHAR(10)," тыс. рублей") -> Данные за 2019 год, тыс. рублей | E3: =CONCATENATE("Данные за " &IF(Титульный!C12="","--- выберите период на листе Титульный ---",(Титульный!C12-3)) & " год,", CHAR(10)," тыс. рублей") -> Данные за 2018 год, тыс. рублей | F3: Итого, тыс. рублей
A4: 1 | B4: 2 | C4: 3 | D4: 4 | E4: 5 | F4: 6
A5: 1 | B5: Расходы по выполнению мероприятий по технологическому присоединению, всего | C5: =C6+C7+C8+C9+C10+C19 -> 530.6939424 | D5: =D6+D7+D8+D9+D10+D19 -> 448.7773032 | E5: =E6+E7+E8+E9+E10+E19 -> 0 | F5: =C5+D5+E5 -> 979.4712456
A6: 1.1 | B6: Вспомогательные материалы | C6: =[1]Справка!$E$5/1000 -> 44.03513709 | D6: =[2]Справка!$E$4/1000 -> 15.93386587 | F6: =C6+D6+E6 -> 59.96900295
A7: 1.2 | B7: Энергия на хозяйственные нужды | F7: 0
A8: 1.3 | B8: Оплата труда ППП | C8: =[1]Справка!$E$9/1000 -> 164.2037277 | D8: =[2]Справка!$E$8/1000 -> 135.1610831 | F8: 299.3648108
A9: 1.4 | B9: Отчисления на страховые взносы | C9: =[1]Справка!$E$10/1000 -> 47.51190356 | D9: =[2]Справка!$E$9/1000 -> 40.31467223 | F9: 87.82657579
A10: 1.5 | B10: Прочие расходы, всего, в том числе: | C10: =SUM(C11:C13) -> 274.943174 | D10: =SUM(D11:D13) -> 257.367682 | E10: =SUM(E11:E13) -> 0 | F10: 532.310856
A11: 1.5.1 | B11: работы и услуги производственного характера | C11: =[1]Справка!$E$11/1000 -> 274.943174 | D11: =[2]Справка!$E$10/1000 -> 257.367682 | F11: 532.310856
A12: 1.5.2 | B12: налоги и сборы, уменьшающие налогооблагаемую базу на прибыль организаций, всего | F12: 0
A13: 1.5.3 | B13: работы и услуги непроизводственного характера, в том числе: | C13: =SUM(C14:C18) -> 0 | D13: =SUM(D14:D18) -> 0 | E13: =SUM(E14:E18) -> 0 | F13: 0
A14: 1.5.3.1 | B14: услуги связи | F14: 0
A15: 1.5.3.2 | B15: расходы на охрану и пожарную безопасность | F15: 0
A16: 1.5.3.3 | B16: расходы на информационное обслуживание, иные услуги, связанные с деятельностью по технологическому присоединению | F16: 0
A17: 1.5.3.4 | B17: плата за аренду имущества | F17: 0
A18: 1.5.3.5 | B18: другие прочие расходы, связанные с производством и реализацией | F18: 0
A19: 1.6 | B19: Внереализованные расходы, всего | C19: =SUM(C20:C23) -> 0 | D19: =SUM(D20:D23) -> 0 | E19: =SUM(E20:E23) -> 0 | F19: 0
A20: 1.6.1 | B20: расходы на услуги банков | F20: 0
A21: 1.6.2 | B21: % за пользование кредитом | F21: 0
A22: 1.6.3 | B22: прочие обоснованные расходы | F22: 0
A23: 1.6.4 | B23: денежные выплаты социального характера ( по Коллективному договору) | F23: 0

Sheet Прил. № 5.1 город
R11: Приложение № 5.1 к Методическим указаниям по определению размера платы за технологическое присоединение к электрическим сетям
A12: dd_hide/show | B12: hide | C12: range_name | D12: address_title | E12: address_svod | G12: Сведения о строительстве линий электропередачи, пунктов секционирования, а также об обеспечении средствами коммерческого учета электрической энергии (мощности) при технологическом присоединении энергопринимающих устройств максимальной мощностью менее 670 кВт и на уровне напряжения 20 кВ и менее (заполняется для территорий городских населенных пунктов)
G13: № п/п | H13: Объект электросетевого хозяйства/Средство коммерческого учета электрической энергии (мощности) | N13: Год ввода объекта 2018 | Q13: Год ввода объекта 2019 | T13: Год ввода объекта 2020
N14: уровень напряжения, кВ | O14: протяженность (для линий электропередачи), км. / количество (для пунктов секционирования, точек учета ээ), шт. | P14: присоединенная максимальная мощность (менее 670 кВт), кВт | Q14: уровень напряжения, кВ | R14: протяженность (для линий электропередачи), км. / количество (для пунктов секционирования, точек учета ээ), шт. | S14: присоединенная максимальная мощность (менее 670 кВт), кВт | T14: уровень напряжения, кВ | U14: протяженность (для линий электропередачи), км. / количество (для пунктов секционирования, точек учета ээ), шт. | V14: присоединенная максимальная мощность (менее 670 кВт), кВт
A15: ddShPr51_rstart | G15: 1 | H15: 2 | N15: 3 | O15: 4 | P15: 5 | Q15: 6 | R15: 7 | S15: 8 | T15: 9 | U15: 10 | V15: 11
G16: 1. | H16: СТРОИТЕЛЬСТВО ВОЗДУШНЫХ ЛИНИЙ ЭЛЕКТРОПЕРЕДАЧИ | O16: =SUM(O18:O24) -> 0 | P16: =SUM(P18:P24) -> 0 | R16: =SUM(R18:R24) -> 0.341 | S16: =SUM(S18:S24) -> 61 | U16: =SUM(U18:U24) -> 1.209 | V16: =SUM(V18:V24) -> 301
H17: тип опор: | I17: тип провода: | J17: материал провода: | K17: сечение провода: | L17: количество цепей: | M17: уровень напряжения:
B18: 1
C19: VL | D19: =ROW($D$17) -> 17 | F19: Удалить | G19: =$G$16 & (ROWS($G$18:G19)-2)+1&"." -> 1.1. | H19: деревянные | I19: изолированный | J19: алюминиевый | K19: до 50 мм2 включительно | L19: одноцепная | M19: 0,4 кВ и ниже | Q19: 0.4 | R19: 0.212 | S19: 30
C20: VL | D20: =ROW($D$17) -> 17 | F20: Удалить | G20: =$G$16 & (ROWS($G$18:G20)-2)+1&"." -> 1.2. | H20: железобетонные опоры | I20: изолированный | J20: алюминиевый | K20: до 50 мм2 включительно | L20: одноцепная | M20: 0,4 кВ и ниже | Q20: 0.4 | R20: 0.129 | S20: 31 | T20: 0.4 | U20: 0.973 | V20: 271
C21: VL | D21: =ROW($D$17) -> 17 | F21: Удалить | G21: =$G$16 & (ROWS($G$18:G21)-2)+1&"." -> 1.3. | H21: железобетонные опоры | I21: изолированный | J21: алюминиевый | K21: до 50 мм2 включительно | L21: одноцепная | M21: 1-20 кВ | T21: 6 | U21: 0.036 | V21: 15
C22: VL | D22: =ROW($D$17) -> 17 | F22: Удалить | G22: =$G$16 & (ROWS($G$18:G22)-2)+1&"." -> 1.4. | H22: железобетонные опоры | I22: изолированный | J22: алюминиевый | K22: от 50 до 100 мм2 включительно | L22: одноцепная | M22: 0,4 кВ и ниже | T22: 0.4 | U22: 0.2 | V22: 15
B23: 1 | C23: VL | D23: =ROW($D$17) -> 17 | F23: Удалить | G23: =$G$16 & (ROWS($G$18:G23)-2)+1&"." -> 1.5.
B24: 1
H25: Добавить
B26: 1
G27: 2. | H27: СТРОИТЕЛЬСТВО КАБЕЛЬНЫХ ЛИНИЙ ЭЛЕКТРОПЕРЕДАЧИ | O27: =SUM(O29:O32) -> 0 | P27: =SUM(P29:P32) -> 0 | R27: =SUM(R29:R32) -> 0 | S27: =SUM(S29:S32) -> 0 | U27: =SUM(U29:U32) -> 0.38 | V27: =SUM(V29:V32) -> 132
H28: способ прокладки: | I28: количество жил: | J28: тип изоляции: | K28: сечение провода: | L28: количество кабелей в траншее, канале, туннеле или коллекторе, на галерее или эстакаде, труб в скважине: | M28: уровень напряжения:
B29: 1
C30: KL | D30: =ROW($D$28) -> 28 | F30: Удалить | G30: =$G$27 & (ROWS($G$29:G30)-2)+1&"." -> 2.1. | H30: в траншеях | I30: многожильные | J30: резиновая и пластмассовая | K30: от 100 до 200 мм2 включительно | L30: один | M30: 0,4 кВ и ниже | T30: 0.4 | U30: 0.38 | V30: 132
B31: 1 | C31: KL | D31: =ROW($D$28) -> 28 | F31: Удалить | G31: =$G$27 & (ROWS($G$29:G31)-2)+1&"." -> 2.2.
B32: 1
H33: Добавить
B34: 1
G35: 3. | H35: СТРОИТЕЛЬСТВО ПУНКТОВ СЕКЦИОНИРОВАНИЯ (РЕКЛОУЗЕРОВ, РАСПРЕДЕЛИТЕЛЬНЫХ ПУНКТОВ, ПЕРЕКЛЮЧАТЕЛЬНЫХ ПУНКТОВ) | O35: =SUM(O37:O39) -> 0 | P35: =SUM(P37:P39) -> 0 | R35: =SUM(R37:R39) -> 0 | S35: =SUM(S37:S39) -> 0 | U35: =SUM(U37:U39) -> 0 | V35: =SUM(V37:V39) -> 0
H36: пункт секционирования: | I36: номинальный ток: | J36: количество ячеек в распределительном или переключательном пункте: | K36: уровень напряжения:
B37: 1
B38: 1 | C38: PS | D38: =ROW($D$36) -> 36 | F38: Удалить | G38: =$G$35 & (ROWS($G$37:G38)-2)+1&"." -> 3.1.
B39: 1
H40: Добавить
B41: 1
G42: 4. | H42: ОБЕСПЕЧЕНИЕ СРЕДСТВАМИ КОММЕРЧЕСКОГО УЧЕТА ЭЛЕКТРИЧЕСКОЙ ЭНЕРГИИ (МОЩНОСТИ) | O42: =SUM(O44:O46) -> 0 | P42: =SUM(P44:P46) -> 0 | R42: 0 | S42: 0 | U42: 0 | V42: 0
H43: количество фаз: | I43: тип включения: | J43: уровень напряжения:
B44: 1
B45: 1 | C45: SKU | D45: =ROW($D$43) -> 43 | F45: Удалить | G45: =$G$42 & (ROWS($G$44:G45)-2)+1&"." -> 4.1.
B46: 1
H47: Добавить
B48: 1
A49: ddShPr51_rstop

Sheet Прил. № 5.2 не город
R11: Приложение № 5.2 к Методическим указаниям по определению размера платы за технологическое присоединение к электрическим сетям
A12: dd_hide/show | B12: hide | C12: range_name | D12: address_title | E12: address_svod | G12: Сведения о строительстве линий электропередачи, пунктов секционирования, а также об обеспечении средствами коммерческого учета электрической энергии (мощности) при технологическом присоединении энергопринимающих устройств максимальной мощностью менее 670 кВт и на уровне напряжения 20 кВ и менее (заполняется для территорий, не относящихся к городским населенным пунктам)
G13: № п/п | H13: Объект электросетевого хозяйства/Средство коммерческого учета электрической энергии (мощности) | N13: Год ввода объекта 2018 | Q13: Год ввода объекта 2019 | T13: Год ввода объекта 2020
N14: уровень напряжения, кВ | O14: протяженность (для линий электропередачи), км. / количество (для пунктов секционирования, точек учета ээ), шт. | P14: присоединенная максимальная мощность (менее 670 кВт), кВт | Q14: уровень напряжения, кВ | R14: протяженность (для линий электропередачи), км. / количество (для пунктов секционирования, точек учета ээ), шт. | S14: присоединенная максимальная мощность (менее 670 кВт), кВт | T14: уровень напряжения, кВ | U14: протяженность (для линий электропередачи), км. / количество (для пунктов секционирования, точек учета ээ), шт. | V14: присоединенная максимальная мощность (менее 670 кВт), кВт
A15: ddShPr52_rstart | G15: 1 | H15: 2 | N15: 3 | O15: 4 | P15: 5 | Q15: 6 | R15: 7 | S15: 8 | T15: 9 | U15: 10 | V15: 11
G16: 1. | H16: СТРОИТЕЛЬСТВО ВОЗДУШНЫХ ЛИНИЙ ЭЛЕКТРОПЕРЕДАЧИ | O16: =SUM(O18:O21) -> 0 | P16: =SUM(P18:P21) -> 0 | R16: =SUM(R18:R21) -> 0.714 | S16: =SUM(S18:S21) -> 15 | U16: =SUM(U18:U21) -> 0 | V16: =SUM(V18:V21) -> 0
H17: тип опор: | I17: тип провода: | J17: материал провода: | K17: сечение провода: | L17: количество цепей: | M17: уровень напряжения:
B18: 1
C19: VL | D19: =ROW($D$17) -> 17 | F19: Удалить | G19: =$G$16 & (ROWS($G$18:G19)-2)+1&"." -> 1.1. | H19: железобетонные опоры | I19: изолированный | J19: алюминиевый | K19: до 50 мм2 включительно | L19: одноцепная | M19: 1-20 кВ | Q19: 6 | R19: 0.714 | S19: 15
B20: 1 | C20: VL | D20: =ROW($D$17) -> 17 | F20: Удалить | G20: =$G$16 & (ROWS($G$18:G20)-2)+1&"." -> 1.2.
B21: 1
H22: Добавить
B23: 1
G24: 2. | H24: СТРОИТЕЛЬСТВО КАБЕЛЬНЫХ ЛИНИЙ ЭЛЕКТРОПЕРЕДАЧИ | O24: =SUM(O26:O28) -> 0 | P24: =SUM(P26:P28) -> 0 | R24: =SUM(R26:R28) -> 0 | S24: =SUM(S26:S28) -> 0 | U24: =SUM(U26:U28) -> 0 | V24: =SUM(V26:V28) -> 0
H25: способ прокладки: | I25: количество жил: | J25: тип изоляции: | K25: сечение провода: | L25: количество кабелей в траншее, канале, туннеле или коллекторе, на галерее или эстакаде, труб в скважине: | M25: уровень напряжения:
B26: 1
B27: 1 | C27: KL | D27: =ROW($D$25) -> 25 | F27: Удалить | G27: =$G$24 & (ROWS($G$26:G27)-2)+1&"." -> 2.1.
B28: 1
H29: Добавить
B30: 1
G31: 3. | H31: СТРОИТЕЛЬСТВО ПУНКТОВ СЕКЦИОНИРОВАНИЯ (РЕКЛОУЗЕРОВ, РАСПРЕДЕЛИТЕЛЬНЫХ ПУНКТОВ, ПЕРЕКЛЮЧАТЕЛЬНЫХ ПУНКТОВ) | O31: =SUM(O33:O35) -> 0 | P31: =SUM(P33:P35) -> 0 | R31: =SUM(R33:R35) -> 0 | S31: =SUM(S33:S35) -> 0 | U31: =SUM(U33:U35) -> 0 | V31: =SUM(V33:V35) -> 0
H32: пункт секционирования: | I32: номинальный ток: | J32: количество ячеек в распределительном или переключательном пункте: | K32: уровень напряжения:
B33: 1
B34: 1 | C34: PS | D34: =ROW($D$32) -> 32 | F34: Удалить | G34: =$G$31 & (ROWS($G$33:G34)-2)+1&"." -> 3.1.
B35: 1
H36: Добавить
B37: 1
G38: 4. | H38: ОБЕСПЕЧЕНИЕ СРЕДСТВАМИ КОММЕРЧЕСКОГО УЧЕТА ЭЛЕКТРИЧЕСКОЙ ЭНЕРГИИ (МОЩНОСТИ) | O38: =SUM(O40:O42) -> 0 | P38: =SUM(P40:P42) -> 0 | R38: 0 | S38: 0 | U38: 0 | V38: 0
H39: количество фаз: | I39: тип включения: | J39: уровень напряжения:
B40: 1
B41: 1 | C41: SKU | D41: =ROW($D$39) -> 39 | F41: Удалить | G41: =$G$38 & (ROWS($G$40:G41)-2)+1&"." -> 4.1.
B42: 1
H43: Добавить
B44: 1
A45: ddShPr52_rstop

Sheet Проверка
B1: Сообщение | C1: Адрес | D1: Статус

Sheet Справочник (hidden)
B1: VL1 | C1: VL2 | D1: VL3 | E1: VL4 | F1: VL5 | G1: VL6 | J1: KL1 | K1: KL2 | L1: KL3 | M1: KL4 | N1: KL5 | O1: KL6 | R1: PS1 | S1: PS2 | T1: PS3 | U1: PS4 | W1: TS1 | X1: TS2 | Y1: TS3 | Z1: TS4 | AB1: RTP1 | AC1: RTP2 | AD1: RTP3 | AG1: SP1 | AH1: SP2 | AI1: SP3 | AL1: SKU1 | AM1: SKU2 | AN1: SKU3
B2: 1. ВЛ Воздушные линии | J2: 2. КЛ Кабельные линии | R2: 3. Пункты секционирования | W2: 4. ТП Трансформаторные подстанции | AB2: 5. РТП Распред. трансформаторные подстанции | AG2: 6. Подстанции | AL2: 7. СКУ Средства коммерческого учета
B3: строительство воздушных линий электропередачи | J3: строительство кабельных линий электропередачи | R3: строительство пунктов секционирования (реклоузеров, распределительных пунктов, переключательных пунктов) | W3: строительство трансформаторных подстанций (ТП), за исключением распределительных трансформаторных подстанций (РТП), с уровнем напряжения до 35 кВ | AB3: строительство распределительных трансформаторных подстанций (РТП) с уровнем напряжения до 35 кВ | AG3: строительство подстанций уровнем напряжения 35 кВ и выше | AL3: обеспечение средствами коммерческого учета электрической энергии (мощности)
B4: тип опор: | C4: тип провода: | D4: материал провода: | E4: сечение провода: | F4: количество цепей: | G4: уровень напряжения: | J4: способ прокладки: | K4: количество жил: | L4: тип изоляции: | M4: сечение провода: | N4: количество кабелей в траншее, канале, туннеле или коллекторе, на галерее или эстакаде, труб в скважине: | O4: уровень напряжения: | R4: пункт секционирования: | S4: номинальный ток: | T4: количество ячеек в распределительном или переключательном пункте: | U4: уровень напряжения: | W4: уровень напряжения: | X4: количество трансформаторов: | Y4: трансформаторная мощность: | Z4: тип трансформаторной подстанции: | AB4: количество трансформаторов: | AC4: трансформаторная мощность: | AD4: уровень напряжения: | AG4: количество трансформаторов: | AH4: трансформаторная мощность: | AI4: уровень напряжения: | AL4: количество фаз: | AM4: тип включения: | AN4: уровень напряжения:
B5: деревянные | C5: изолированный | D5: медный | E5: до 50 мм2 включительно | F5: одноцепная | G5: 0,4 кВ и ниже | J5: в траншеях | K5: одножильные | L5: резиновая и пластмассовая | M5: до 50 мм2 включительно | N5: один | O5: 0,4 кВ и ниже | R5: реклоузеры | S5: до 100 А включительно | T5: до 5 ячеек включительно | U5: 0,4 кВ и ниже | W5: 6/0,4 кВ | X5: однотрансформаторные | Y5: до 25 кВА включительно | Z5: столбовой/мачтовый | AB5: однотрансформаторные | AC5: до 25 кВА включительно | AD5: 6(10)/0,4 кВ | AG5: однотрансформаторные | AH5: до 6,3 МВА включительно | AI5: 35/6(10) кВ | AL5: однофазный | AM5: прямой | AN5: 0,4 кВ и ниже
B6: железобетонные опоры | C6: неизолированный | D6: стальной | E6: от 50 до 100 мм2 включительно | F6: двухцепная | G6: 1-20 кВ | J6: в блоках | K6: многожильные | L6: бумажная | M6: от 50 до 100 мм2 включительно | N6: два | O6: 1-10 кВ | R6: линейные разъединители | S6: от 100 до 250 А включительно | T6: от 5 до 10 ячеек включительно | U6: 1-20 кВ | W6: 10/0,4 кВ | X6: двухтрансформаторные | Y6: от 25 до 100 кВА включительно | Z6: шкафной или киосковый | AB6: двухтрансформаторные | AC6: от 25 до 100 кВА включительно | AD6: 20/0,4 кВ | AG6: двухтрансформаторные | AH6: от 6,3 до 10 МВА включительно | AI6: 35/0,4 кВ | AL6: трехфазный | AM6: полукосвенный | AN6: 1-20 кВ
B7: металлические опоры | D7: сталеалюминиевый | E7: от 100 до 200 мм2 включительно | G7: 27,5-60 кВ | J7: в каналах | M7: от 100 до 200 мм2 включительно | N7: три | O7: 15-20 кВ | R7: выключатели нагрузки, устанавливаемые вне трансформаторных подстанций и распределительных и переключательных пунктов (РП) | S7: от 250 до 500 А включительно | T7: от 10 до 15 ячеек включительно | U7: 35 кВ | W7: 20/0,4 кВ | Y7: от 100 до 250 кВА включительно | Z7: блочный | AC7: от 100 до 250 кВА включительно | AH7: от 10 до 16 МВА включительно | AI7: 110/35 кВ | AM7: косвенный | AN7: 35 кВ
B8: металлические опоры, за исключением многогранных | D8: алюминиевый | E8: от 200 до 500 мм2 включительно | G8: 110 кВ и выше | J8: в туннелях и коллекторах | M8: от 200 до 250 мм2 включительно | N8: четыре | O8: 27,5-60 кВ | R8: распределительные пункты (РП), за исключением комплектных распределительных устройств наружной установки (КРН, КРУН) | S8: от 500 до 1000 А включительно | T8: свыше 15 ячеек | U8: 110 кВ и выше | W8: 6/10 (10/6) кВ | Y8: от 250 до 400 кВА включительно | AC8: от 250 до 400 кВА включительно | AH8: от 16 до 25 МВА включительно | AI8: 110/6(10) кВ | AN8: 110 кВ и выше
B9: многогранные металлические опоры | E9: от 500 до 800 мм2 включительно | J9: в галереях и эстакадах | M9: от 250 до 300 мм2 включительно | N9: более четырех | O9: 110 кВ и выше | R9: комплектные распределительные устройства наружной установки (КРН, КРУН) | S9: свыше 1000 А | W9: 10/20 (20/10) кВ | Y9: от 400 до 1000 кВА включительно | AC9: от 400 до 1000 кВА включительно | AH9: от 25 до 32 МВА включительно | AI9: 110/35/6(10) кВ
E10: свыше 800 мм2 | J10: горизонтальное наклонное бурение | M10: от 300 до 400 мм2 включительно | R10: переключательные пункты | W10: 6/20 (20/6) кВ | Y10: от 1000 до 1250 кВА включительно | AC10: от 1000 до 1250 кВА включительно | AH10: от 32 до 40 МВА включительно
M11: от 400 до 500 мм2 включительно | Y11: от 1250 до 1600 кВА включительно | AC11: от 1250 до 1600 кВА включительно | AH11: от 40 до 63 МВА включительно
M12: от 500 до 800 мм2 включительно | Y12: от 1600 до 2000 кВА включительно | AC12: от 1600 до 2000 кВА включительно | AH12: от 63 до 80 МВА включительно
M13: свыше 800 мм2 | Y13: от 2000 до 2500 кВА включительно | AC13: от 2000 до 2500 кВА включительно | AH13: от 80 до 100 МВА включительно
Y14: от 2500 до 3150 кВА включительно | AC14: от 2500 до 3150 кВА включительно | AH14: свыше 100 МВА
Y15: от 3150 до 4000 кВА включительно | AC15: свыше 3150 кВА
Y16: свыше 4000 кВА
